fUSD/lending_fUSD_20240728
["ID","MTS","AMOUNT","RATE_DAILY","PERIOD"]
[333450618,1722137436362,-224.85,0.00010904,3]
[333450619,1722137436371,-500.0,0.00010912,2]
[333450620,1722137436380,-520.0,0.00010934,2]
[333450621,1722137436390,-823.0,0.00010939,2]
[333450622,1722137436399,-500.0,0.00010958,2]
[333450623,1722137436408,-500.0,0.00010958,2]
[333450624,1722137436418,-514.80182356,0.00010958,2]
[333450625,1722137436428,-500.0,0.00010958,2]
[333450626,1722137436437,-506.94858772,0.00010958,2]
[333450627,1722137436447,-405.20467878,0.00010958,2]
[333450628,1722137436457,-522.94353449,0.00010958,2]
[333450629,1722137436467,-500.0,0.00010958,2]
[333450630,1722137436477,-500.0,0.00010958,2]
[333450631,1722137436487,-641.97766067,0.00010958,2]
[333450632,1722137436498,-500.0,0.00010958,2]
[333450633,1722137436507,-514.32680474,0.00010958,2]
[333450634,1722137436516,-500.0,0.00010958,2]
[333450635,1722137436526,-500.0,0.00010958,2]
[333450636,1722137436535,-516.49604857,0.00010958,2]
[333450637,1722137436544,-500.0,0.00010958,2]
[333450638,1722137436553,-500.0,0.00010958,2]
[333450639,1722137436563,-506.98129487,0.00010958,2]
[333450640,1722137436572,-500.0,0.00010958,2]
[333450641,1722137436582,-450.0,0.00010958,2]
[333450642,1722137436591,-500.0,0.00010958,2]
[333450643,1722137436600,-617.07,0.00010958,2]
[333450644,1722137436609,-500.0,0.00010958,2]
[333450645,1722137436618,-500.0,0.00010958,2]
[333450646,1722137436627,-529.31340564,0.00010958,2]
[333450647,1722137436636,-474.41022161,0.00010958,2]
[333450648,1722137436646,-500.0,0.00010958,2]
[333450649,1722137436655,-507.3104306,0.00010958,2]
[333450650,1722137436664,-500.0,0.00010958,2]
[333450651,1722137436673,-520.99084792,0.00010958,2]
[333450652,1722137436682,-500.0,0.00010958,2]
[333450653,1722137436695,-500.0,0.00010958,2]
[333450654,1722137436704,-512.37491662,0.00010958,2]
[333450655,1722137436714,-604.26169336,0.00010958,2]
[333450656,1722137436723,-500.0,0.00010958,2]
[333450657,1722137436732,-558.71644223,0.00010958,2]
[333450658,1722137436742,-500.0,0.00010958,2]
[333450659,1722137436751,-562.63659989,0.00010958,2]
[333450660,1722137436760,-500.0,0.00010958,2]
[333450661,1722137436769,-500.0,0.00010958,2]
[333450662,1722137436778,-511.0669081,0.00010958,2]
[333450663,1722137436789,-541.82503543,0.00010958,2]
[333450664,1722137436798,-522.01837096,0.00010958,2]
[333450665,1722137436807,-514.17045275,0.00010958,2]
[333450666,1722137436816,-547.71700865,0.00010958,2]
[333450667,1722137436826,-541.27319721,0.00010958,2]
[333450668,1722137436835,-500.0,0.00010958,2]
[333450669,1722137436845,-500.0,0.00010958,2]
[333450670,1722137436855,-247.51413383,0.00010958,2]
[333450671,1722137436863,-500.0,0.00010958,2]
[333450672,1722137436873,-541.58124504,0.00010958,2]
[333450673,1722137436882,-511.10673125,0.00010958,2]
[333450674,1722137436891,-526.18486311,0.00010958,2]
[333450675,1722137436900,-500.0,0.00010958,2]
[333450676,1722137436909,-500.0,0.00010958,2]
[333450677,1722137436918,-548.3725399,0.00010958,2]
[333450678,1722137436927,-500.0,0.00010958,2]
[333450679,1722137436936,-473.72874922,0.00010958,2]
[333450680,1722137436945,-408.84185451,0.00010958,2]
[333450681,1722137436954,-500.0,0.00010958,2]
[333450682,1722137436963,-515.23179361,0.00010958,2]
[333450683,1722137436972,-500.0,0.00010958,2]
[333450684,1722137436981,-516.41207033,0.00010958,2]
[333450685,1722137436991,-500.0,0.00010958,2]
[333450686,1722137436999,-500.0,0.00010958,2]
[333450687,1722137437008,-500.0,0.00010958,2]
[333450688,1722137437017,-500.0,0.00010958,2]
[333450689,1722137437027,-500.0,0.00010958,2]
[333450690,1722137437036,-233.73655219,0.00010958,2]
[333450691,1722137437046,-537.47218605,0.00010958,2]
[333450692,1722137437055,-568.08737629,0.00010958,2]
[333450693,1722137437064,-500.0,0.00010958,2]
[333450694,1722137437073,-500.0,0.00010958,2]
[333450695,1722137437082,-500.0,0.00010958,2]
[333450696,1722137437091,-500.0,0.00010958,2]
[333450697,1722137437100,-500.0,0.00010958,2]
[333450698,1722137437109,-500.0,0.00010958,2]
[333450699,1722137437118,-500.0,0.00010958,2]
[333450700,1722137437127,-562.15098463,0.00010958,2]
[333450701,1722137437136,-545.64301496,0.00010958,2]
[333450702,1722137437145,-562.50851543,0.00010958,2]
[333450703,1722137437154,-603.06228701,0.00010958,2]
[333450704,1722137437163,-500.0,0.00010958,2]
[333450705,1722137437172,-500.0,0.00010958,2]
[333450706,1722137437181,-500.0,0.00010958,2]
[333450707,1722137437190,-618.9541524,0.00010958,2]
[333450708,1722137437199,-500.0,0.00010958,2]
[333450709,1722137437208,-500.0,0.00010958,2]
[333450710,1722137437217,-563.96978289,0.00010958,2]
[333450711,1722137437226,-500.0,0.00010958,2]
[333450712,1722137437235,-500.0,0.00010958,2]
[333450713,1722137437244,-625.86288613,0.00010958,2]
[333450714,1722137437253,-500.0,0.00010958,2]
[333450715,1722137437262,-221.49476905,0.00010958,2]
[333450716,1722137437271,-500.0,0.00010958,2]
[333450717,1722137437280,-500.0,0.00010958,2]
[333450718,1722137437290,-260.4773483,0.00010958,2]
[333450719,1722137437299,-500.0,0.00010958,2]
[333450720,1722137437308,-500.0,0.00010958,2]
[333450721,1722137437317,-500.0,0.00010958,2]
[333450722,1722137437326,-462.97162022,0.00010958,2]
[333450723,1722137437336,-636.83592714,0.00010958,2]
[333450724,1722137437345,-309.40718059,0.00010958,2]
[333450725,1722137437354,-601.40914495,0.00010958,2]
[333450726,1722137437363,-500.0,0.00010958,2]
[333450727,1722137437373,-500.0,0.00010958,2]
[333450728,1722137437382,-500.0,0.00010958,2]
[333450729,1722137437391,-500.0,0.00010958,2]
[333450730,1722137437400,-180.70138279,0.00010958,2]
[333450731,1722137437409,-500.0,0.00010958,2]
[333450732,1722137437418,-578.7556203,0.00010958,2]
[333450733,1722137437427,-500.0,0.00010958,2]
[333450734,1722137437436,-540.34436534,0.00010958,2]
[333450735,1722137437445,-327.1383999,0.00010958,2]
[333450736,1722137437455,-500.0,0.00010958,2]
[333450737,1722137437464,-500.0,0.00010958,2]
[333450738,1722137437473,-627.10898051,0.00010958,2]
[333450739,1722137437482,-587.3743262,0.00010958,2]
[333450740,1722137437493,-510.31843334,0.00010958,2]
[333450741,1722137437502,-500.0,0.00010958,2]
[333450742,1722137437511,-608.33488458,0.00010958,2]
[333450743,1722137437520,-500.0,0.00010958,2]
[333450744,1722137437530,-500.0,0.00010958,2]
[333450745,1722137437539,-500.0,0.00010958,2]
[333450746,1722137437548,-500.0,0.00010958,2]
[333450747,1722137437558,-538.4178937,0.00010958,2]
[333450748,1722137437567,-515.56570287,0.00010958,2]
[333450749,1722137437576,-500.0,0.00010958,2]
[333450750,1722137437586,-638.442262,0.00010958,2]
[333450751,1722137437596,-622.54197608,0.00010958,2]
[333450752,1722137437606,-500.0,0.00010958,2]
[333450753,1722137437616,-500.0,0.00010958,2]
[333450754,1722137437625,-259.02630415,0.00010958,2]
[333450755,1722137437635,-500.0,0.00010958,2]
[333450756,1722137437644,-500.0,0.00010958,2]
[333450757,1722137437653,-500.0,0.00010958,2]
[333450758,1722137437663,-500.0,0.00010958,2]
[333450759,1722137437672,-545.69178983,0.00010958,2]
[333450760,1722137437681,-500.0,0.00010958,2]
[333450761,1722137437694,-500.0,0.00010958,2]
[333450762,1722137437704,-401.78502033,0.00010958,2]
[333450763,1722137437713,-500.0,0.00010958,2]
[333450764,1722137437722,-500.0,0.00010958,2]
[333450765,1722137437731,-500.0,0.00010958,2]
[333450766,1722137437740,-500.0,0.00010958,2]
[333450767,1722137437749,-500.0,0.00010958,2]
[333450768,1722137437758,-500.0,0.00010958,2]
[333450769,1722137437767,-500.0,0.00010958,2]
[333450770,1722137437777,-368.15521293,0.00010958,2]
[333450771,1722137437787,-500.0,0.00010958,2]
[333450772,1722137437796,-500.0,0.00010958,2]
[333450773,1722137437805,-417.57593999,0.00010958,2]
[333450774,1722137437815,-513.68990915,0.00010958,2]
[333450775,1722137437824,-516.60472651,0.00010958,2]
[333450776,1722137437833,-500.0,0.00010958,2]
[333450777,1722137437842,-500.0,0.00010958,2]
[333450778,1722137437851,-500.0,0.00010958,2]
[333450779,1722137437860,-300.42839445,0.00010958,2]
[333450780,1722137437869,-500.0,0.00010958,2]
[333450781,1722137437878,-500.0,0.00010958,2]
[333450782,1722137437888,-500.0061173,0.00010958,2]
[333450783,1722137437897,-500.0,0.00010958,2]
[333450784,1722137437906,-500.0,0.00010958,2]
[333450785,1722137437915,-500.0,0.00010958,2]
[333450786,1722137437924,-500.0,0.00010958,2]
[333450787,1722137437934,-500.0,0.00010958,2]
[333450788,1722137437944,-500.0,0.00010958,2]
[333450789,1722137437953,-500.0,0.00010958,2]
[333450790,1722137437963,-500.0,0.00010958,2]
[333450791,1722137437974,-500.0,0.00010958,2]
[333450792,1722137437983,-500.0,0.00010958,2]
[333450793,1722137437994,-500.0,0.00010958,2]
[333450794,1722137438006,-500.0,0.00010958,2]
[333450795,1722137438018,-512.69945677,0.00010958,2]
[333450796,1722137438028,-500.0,0.00010958,2]
[333450797,1722137438037,-500.0,0.00010958,2]
[333450798,1722137438046,-210.16763663,0.00010958,2]
[333450799,1722137438056,-500.0,0.00010958,2]
[333450800,1722137438066,-500.0,0.00010958,2]
[333450801,1722137438077,-500.0,0.00010958,2]
[333450802,1722137438089,-516.45065202,0.00010958,2]
[333450803,1722137438099,-647.98,0.00010958,2]
[333450804,1722137438109,-500.0,0.00010958,2]
[333450805,1722137438120,-430.6680059,0.00010958,2]
[333450806,1722137438129,-500.0,0.00010958,2]
[333450807,1722137438138,-500.0,0.00010958,2]
[333450808,1722137438147,-500.0,0.00010958,2]
[333450809,1722137438156,-509.65976095,0.00010958,2]
[333450810,1722137438165,-522.36141533,0.00010958,2]
[333450811,1722137438174,-550.01303818,0.00010958,2]
[333450812,1722137438183,-500.0,0.00010958,2]
[333450813,1722137438192,-258.096365,0.00010958,2]
[333450814,1722137438201,-500.0,0.00010958,2]
[333450815,1722137438210,-500.0,0.00010958,2]
[333450816,1722137438219,-179.56231691,0.00010958,2]
[333450817,1722137438228,-500.0,0.00010958,2]
[333450818,1722137438237,-500.0,0.00010958,2]
[333450819,1722137438246,-500.0,0.00010958,2]
[333450820,1722137438256,-500.0,0.00010958,2]
[333450821,1722137438266,-451.18989333,0.00010958,2]
[333450822,1722137438277,-500.0,0.00010958,2]
[333450823,1722137438286,-500.0,0.00010958,2]
[333450824,1722137438295,-500.0,0.00010958,2]
[333450825,1722137438304,-500.0,0.00010958,2]
[333450826,1722137438313,-500.0,0.00010958,2]
[333450827,1722137438323,-500.0,0.00010958,2]
[333450828,1722137438332,-510.98954229,0.00010958,2]
[333450829,1722137438342,-500.0,0.00010958,2]
[333450830,1722137438352,-157.37,0.00010958,2]
[333450831,1722137438361,-512.32458636,0.00010958,2]
[333450832,1722137438370,-500.0,0.00010958,2]
[333450833,1722137438380,-455.2798483,0.00010958,2]
[333450834,1722137438389,-606.38573655,0.00010958,2]
[333450835,1722137438399,-500.0,0.00010958,2]
[333450836,1722137438408,-500.0,0.00010958,2]
[333450837,1722137438418,-582.9434618,0.00010958,2]
[333450838,1722137438427,-171.37871962,0.00010958,2]
[333450839,1722137438436,-500.0,0.00010958,2]
[333450840,1722137438446,-500.0,0.00010958,2]
[333450841,1722137438455,-500.0,0.00010958,2]
[333450842,1722137438465,-252.02,0.00010958,2]
[333450843,1722137438474,-500.0,0.00010958,2]
[333450844,1722137438483,-210.52,0.00010958,2]
[333450845,1722137438493,-525.78331443,0.00010958,2]
[333450846,1722137438502,-529.79484022,0.00010958,2]
[333450847,1722137438512,-521.46167839,0.00010958,2]
[333450848,1722137438522,-500.0,0.00010958,2]
[333450849,1722137438532,-515.60624362,0.00010958,2]
[333450850,1722137438542,-500.0,0.00010958,2]
[333450851,1722137438551,-500.0,0.00010958,2]
[333450852,1722137438561,-467.08,0.00010958,2]
[333450853,1722137438572,-500.0,0.00010958,2]
[333450854,1722137438582,-517.22,0.00010958,2]
[333450855,1722137438593,-500.0,0.00010958,2]
[333450856,1722137438603,-500.0,0.00010958,2]
[333450857,1722137438613,-264.12905689,0.00010958,2]
[333450858,1722137438623,-544.24480494,0.00010958,2]
[333450859,1722137438632,-500.0,0.00010958,2]
[333450860,1722137438642,-429.79558921,0.00010958,2]
[333450861,1722137438651,-500.0,0.00010958,2]
[333450862,1722137438660,-517.45044508,0.00010958,2]
[333450863,1722137438669,-514.8183409,0.00010958,2]
[333450864,1722137438678,-527.12929425,0.00010958,2]
[333450865,1722137438689,-511.35834381,0.00010958,2]
[333450866,1722137438700,-514.26268159,0.00010958,2]
[333450867,1722137438709,-500.0,0.00010958,2]
[333450868,1722137438719,-500.0,0.00010958,2]
[333450869,1722137438728,-500.0,0.00010958,2]
[333450870,1722137438739,-514.33320222,0.00010958,2]
[333450871,1722137438748,-520.74143237,0.00010958,2]
[333450872,1722137438757,-517.0640242,0.00010958,2]
[333450873,1722137438768,-515.16310106,0.00010958,2]
[333450874,1722137438782,-527.20895489,0.00010958,2]
[333450875,1722137438791,-500.0,0.00010958,2]
[333450876,1722137438800,-518.22711401,0.00010958,2]
[333450877,1722137438813,-500.0,0.00010958,2]
[333450878,1722137438822,-500.0,0.00010958,2]
[333450879,1722137438832,-534.08935275,0.00010958,2]
[333450880,1722137438841,-500.0,0.00010958,2]
[333450881,1722137438850,-500.0,0.00010958,2]
[333450882,1722137438859,-528.61556323,0.00010958,2]
[333450883,1722137438868,-526.75272146,0.00010958,2]
[333450884,1722137438877,-500.0,0.00010958,2]
[333450885,1722137438886,-500.0,0.00010958,2]
[333450886,1722137438895,-500.0,0.00010958,2]
[333450887,1722137438905,-500.0,0.00010958,2]
[333450888,1722137438914,-500.0,0.00010958,2]
[333450889,1722137438923,-500.0,0.00010958,2]
[333450890,1722137438933,-500.0,0.00010958,2]
[333450891,1722137438943,-500.0,0.00010958,2]
[333450892,1722137438953,-500.0,0.00010958,2]
[333450893,1722137438962,-204.66680648,0.00010958,2]
[333450894,1722137438972,-500.0,0.00010958,2]
[333450895,1722137438982,-562.38349592,0.00010958,2]
[333450896,1722137438991,-500.0,0.00010958,2]
[333450897,1722137439001,-500.0,0.00010958,2]
[333450898,1722137439010,-500.0,0.00010958,2]
[333450899,1722137439018,-500.0,0.00010958,2]
[333450900,1722137439029,-475.41004737,0.00010958,2]
[333450901,1722137439038,-305.19754649,0.00010958,2]
[333450902,1722137439048,-570.99760361,0.00010958,2]
[333450903,1722137439057,-500.0,0.00010958,2]
[333450904,1722137439066,-500.0,0.00010958,2]
[333450905,1722137439075,-500.0,0.00010958,2]
[333450906,1722137439084,-515.40997907,0.00010958,2]
[333450907,1722137439093,-510.95737629,0.00010958,2]
[333450908,1722137439102,-500.0,0.00010958,2]
[333450909,1722137439111,-500.0,0.00010958,2]
[333450910,1722137439120,-500.0,0.00010958,2]
[333450911,1722137439129,-516.737646,0.00010958,2]
[333450912,1722137439138,-500.0,0.00010958,2]
[333450913,1722137439147,-469.30476145,0.00010958,2]
[333450914,1722137439156,-500.0,0.00010958,2]
[333450915,1722137439165,-583.43081501,0.00010958,2]
[333450916,1722137439174,-500.0,0.00010958,2]
[333450917,1722137439183,-512.49437274,0.00010958,2]
[333450918,1722137439192,-500.0,0.00010958,2]
[333450919,1722137439202,-516.78657722,0.00010958,2]
[333450920,1722137439211,-512.78806884,0.00010958,2]
[333450921,1722137439220,-508.84532443,0.00010958,2]
[333450922,1722137439229,-513.40151434,0.00010958,2]
[333450923,1722137439239,-500.0,0.00010958,2]
[333450924,1722137439248,-505.62985285,0.00010958,2]
[333450925,1722137439257,-500.0,0.00010958,2]
[333450926,1722137439266,-500.0,0.00010958,2]
[333450927,1722137439278,-500.0,0.00010958,2]
[333450928,1722137439287,-500.0,0.00010958,2]
[333450929,1722137439296,-500.0,0.00010958,2]
[333450930,1722137439305,-500.0,0.00010958,2]
[333450931,1722137439318,-500.0,0.00010958,2]
[333450932,1722137439327,-500.0,0.00010958,2]
[333450933,1722137439336,-500.0,0.00010958,2]
[333450934,1722137439346,-534.76749455,0.00010958,2]
[333450935,1722137439356,-500.0,0.00010958,2]
[333450936,1722137439365,-523.93251006,0.00010958,2]
[333450937,1722137439374,-513.75189573,0.00010958,2]
[333450938,1722137439383,-525.97176895,0.00010958,2]
[333450939,1722137439392,-500.0,0.00010958,2]
[333450940,1722137439403,-500.0,0.00010958,2]
[333450941,1722137439412,-500.0,0.00010958,2]
[333450942,1722137439421,-377.99548614,0.00010958,2]
[333450943,1722137439430,-500.0,0.00010958,2]
[333450944,1722137439440,-259.33685475,0.00010958,2]
[333450945,1722137439449,-500.0,0.00010958,2]
[333450946,1722137439458,-500.0,0.00010958,2]
[333450947,1722137439467,-500.0,0.00010958,2]
[333450948,1722137439476,-500.0,0.00010958,2]
[333450949,1722137439486,-500.0,0.00010958,2]
[333450950,1722137439495,-500.0,0.00010958,2]
[333450951,1722137439504,-500.0,0.00010958,2]
[333450952,1722137439513,-500.0,0.00010958,2]
[333450953,1722137439526,-500.0,0.00010958,2]
[333450954,1722137439535,-500.0,0.00010958,2]
[333450955,1722137439546,-500.0,0.00010958,2]
[333450956,1722137439556,-500.0,0.00010958,2]
[333450957,1722137439566,-500.0,0.00010958,2]
[333450958,1722137439576,-500.0,0.00010958,2]
[333450959,1722137439585,-500.0,0.00010958,2]
[333450960,1722137439595,-500.0,0.00010958,2]
[333450961,1722137439604,-500.0,0.00010958,2]
[333450962,1722137439614,-500.0,0.00010958,2]
[333450963,1722137439624,-500.0,0.00010958,2]
[333450964,1722137439633,-506.5675401,0.00010958,2]
[333450965,1722137439643,-500.0,0.00010958,2]
[333450966,1722137439652,-500.0,0.00010958,2]
[333450967,1722137439662,-500.0,0.00010958,2]
[333450968,1722137439671,-500.0,0.00010958,2]
[333450969,1722137439680,-500.0,0.00010958,2]
[333450970,1722137439692,-500.0,0.00010958,2]
[333450971,1722137439702,-500.0,0.00010958,2]
[333450972,1722137439712,-500.0,0.00010958,2]
[333450973,1722137439721,-500.0,0.00010958,2]
[333450974,1722137439731,-500.0,0.00010958,2]
[333450975,1722137439903,-500.0,0.00010958,2]
[333450976,1722137439912,-500.0,0.00010958,2]
[333450977,1722137439922,-500.0,0.00010958,2]
[333450978,1722137439931,-500.0,0.00010958,2]
[333450979,1722137439941,-500.0,0.00010958,2]
[333450980,1722137439950,-530.40126646,0.00010958,2]
[333450981,1722137439960,-500.0,0.00010958,2]
[333450982,1722137439969,-500.0,0.00010958,2]
[333450983,1722137439979,-500.0,0.00010958,2]
[333450984,1722137439989,-500.0,0.00010958,2]
[333450985,1722137439999,-500.0,0.00010958,2]
[333450986,1722137440008,-500.0,0.00010958,2]
[333450987,1722137440018,-500.0,0.00010958,2]
[333450988,1722137440030,-500.0,0.00010958,2]
[333450989,1722137440040,-500.0,0.00010958,2]
[333450990,1722137440050,-506.15748877,0.00010958,2]
[333450991,1722137440060,-185.43296282,0.00010958,2]
[333450992,1722137440070,-500.0,0.00010958,2]
[333450993,1722137440080,-500.0,0.00010958,2]
[333450994,1722137440089,-500.0,0.00010958,2]
[333450995,1722137440099,-500.0,0.00010958,2]
[333450996,1722137440108,-500.0,0.00010958,2]
[333450997,1722137440118,-500.0,0.00010958,2]
[333450998,1722137440128,-500.0,0.00010958,2]
[333450999,1722137440138,-500.0,0.00010958,2]
[333451000,1722137440148,-500.0,0.00010958,2]
[333451001,1722137440158,-500.0,0.00010958,2]
[333451002,1722137440167,-211.11404178,0.00010958,2]
[333451003,1722137440177,-500.0,0.00010958,2]
[333451004,1722137440187,-500.0,0.00010958,2]
[333451005,1722137440197,-276.48547722,0.00010958,2]
[333451006,1722137440206,-500.0,0.00010958,2]
[333451007,1722137440216,-451.53139699,0.00010958,2]
[333451008,1722137440225,-500.0,0.00010958,2]
[333451009,1722137440235,-173.76978774,0.00010958,2]
[333451010,1722137440244,-500.0,0.00010958,2]
[333451011,1722137440254,-239.48748911,0.00010958,2]
[333451012,1722137440264,-500.0,0.00010958,2]
[333451013,1722137440275,-500.15700218,0.00010958,2]
[333451014,1722137440285,-500.0,0.00010958,2]
[333451015,1722137440294,-500.0,0.00010958,2]
[333451016,1722137440304,-416.30053236,0.00010958,2]
[333451017,1722137440313,-500.0,0.00010958,2]
[333451018,1722137440323,-631.64500012,0.00010958,2]
[333451019,1722137440333,-500.0,0.00010958,2]
[333451020,1722137440343,-500.0,0.00010958,2]
[333451021,1722137440353,-500.0,0.00010958,2]
[333451022,1722137440362,-500.0,0.00010958,2]
[333451023,1722137440372,-500.0,0.00010958,2]
[333451024,1722137440381,-522.14136041,0.00010958,2]
[333451025,1722137440391,-553.57922408,0.00010958,2]
[333451026,1722137440401,-500.0,0.00010958,2]
[333451027,1722137440411,-5725.85,0.00010958,2]
[333451028,1722137440420,-155.04403938,0.00010958,2]
[333451029,1722137440430,-200.0,0.00010959,2]
[333451030,1722137440440,-250.0,0.00010959,2]
[333451031,1722137440451,-709.87,0.00010959,2]
[333451032,1722137440462,-500.0,0.00010998,2]
[333451034,1722137440473,-168.29508742,0.00010998,2]
[333451036,1722137440483,-500.0,0.00010998,2]
[333451038,1722137440494,-643.6,0.00010998,2]
[333451040,1722137440505,-500.0,0.00010998,2]
[333451042,1722137440514,-500.0,0.00010998,2]
[333451044,1722137440525,-544.78183636,0.00010998,2]
[333451046,1722137440535,-151.49305421,0.00010998,2]
[333451048,1722137440545,-500.0,0.00010998,2]
[333451050,1722137440555,-500.0,0.00010998,2]
[333451052,1722137440564,-500.0,0.00010998,2]
[333451054,1722137440575,-500.0,0.00010998,2]
[333451056,1722137440585,-500.0,0.00010998,2]
[333451058,1722137440595,-500.0,0.00010998,2]
[333451060,1722137440605,-507.63103593,0.00010998,2]
[333451062,1722137440614,-500.0,0.00010998,2]
[333451064,1722137440624,-514.5119856,0.00010998,2]
[333451066,1722137440634,-507.55385529,0.00010998,2]
[333451068,1722137440644,-523.44549824,0.00010998,2]
[333451069,1722137440654,-210.85007943,0.00010998,2]
[333451070,1722137440663,-500.0,0.00010998,2]
[333451071,1722137440673,-500.0,0.00010998,2]
[333451072,1722137440683,-541.73394179,0.00010998,2]
[333451073,1722137440697,-500.0,0.00010998,2]
[333451074,1722137440707,-640.1380685,0.00010998,2]
[333451075,1722137440717,-500.0,0.00010998,2]
[333451076,1722137440727,-500.0,0.00010998,2]
[333451078,1722137440737,-500.0,0.00010998,2]
[333451079,1722137440747,-507.75625208,0.00010998,2]
[333451080,1722137440758,-459.04853496,0.00010998,2]
[333451081,1722137440768,-329.9468463,0.00010998,2]
[333451082,1722137440778,-150.0,0.00010998,2]
[333451084,1722137440788,-500.0,0.00010998,2]
[333451086,1722137440798,-500.0,0.00010998,2]
[333451088,1722137440807,-500.0,0.00010998,2]
[333451090,1722137440817,-513.82177758,0.00010998,2]
[333451092,1722137440827,-500.0,0.00010998,2]
[333451094,1722137440837,-500.0,0.00010998,2]
[333451096,1722137440847,-500.0,0.00010998,2]
[333451098,1722137440856,-500.0,0.00010998,2]
[333451100,1722137440866,-232.87678541,0.00010998,2]
[333451102,1722137440876,-500.0,0.00010998,2]
[333451104,1722137440886,-540.23,0.00010998,2]
[333451106,1722137440896,-5725.85,0.00010998,2]
[333451108,1722137440906,-331.27589695,0.00010999,2]
[333451110,1722137440915,-472.79207333,0.00010999,2]
[333451112,1722137440926,-509.92075726,0.00010999,2]
[333451114,1722137440935,-510.22404523,0.00010999,2]
[333451116,1722137440950,-516.90108455,0.00010999,2]
[333451118,1722137440959,-552.13062921,0.00010999,2]
[333451120,1722137440968,-511.73166599,0.00010999,2]
[333451122,1722137440978,-517.19338538,0.00010999,2]
[333451124,1722137440987,-507.20679879,0.00010999,2]
[333451126,1722137440996,-508.73809656,0.00010999,2]
[333451128,1722137441006,-291.85282492,0.00010999,2]
[333451130,1722137441016,-516.71712868,0.00010999,2]
[333451132,1722137441028,-509.80516122,0.00010999,2]
[333451134,1722137441038,-500.0,0.00010999,2]
[333451136,1722137441047,-504.24327175,0.00010999,2]
[333451138,1722137441057,-508.29112471,0.00010999,2]
[333451140,1722137441067,-514.52296001,0.00010999,2]
[333451142,1722137441078,-301.53665074,0.00010999,2]
[333451144,1722137441087,-204.93578402,0.00010999,2]
[333451146,1722137441097,-511.10265016,0.00010999,2]
[333451148,1722137441107,-283.52382716,0.00010999,2]
[333451150,1722137441117,-500.0,0.00010999,2]
[333451152,1722137441128,-535.55690414,0.00010999,2]
[333451154,1722137441138,-500.0,0.00010999,2]
[333451156,1722137441148,-500.0,0.00010999,2]
[333451158,1722137441158,-500.0,0.00010999,2]
[333451160,1722137441167,-500.0,0.00010999,2]
[333451162,1722137441177,-500.0,0.00010999,2]
[333451164,1722137441187,-179.04334588,0.00010999,2]
[333451166,1722137441197,-500.0,0.00010999,2]
[333451168,1722137441207,-500.0,0.00010999,2]
[333451170,1722137441216,-208.40573289,0.00010999,2]
[333451172,1722137441226,-311.46014098,0.00010999,2]
[333451174,1722137441235,-331.36759717,0.00010999,2]
[333451176,1722137441244,-500.0,0.00010999,2]
[333451178,1722137441254,-346.24,0.00010999,2]
[333451180,1722137441264,-161.69037527,0.00010999,2]
[333451182,1722137441274,-449.02476873,0.00010999,2]
[333451185,1722137441284,-206.89534334,0.00010999,2]
[333451186,1722137441295,-470.0,0.00010999,2]
[333451188,1722137441304,-500.0,0.00010999,2]
[333451190,1722137441314,-500.0,0.00010999,2]